fUST/lending_fUST_20260508
["ID","MTS","AMOUNT","RATE_DAILY","PERIOD"]
[421844675,1778208652000,-643.98,0.00012876,2]
[421844674,1778208652000,-1455.56,0.00012876,2]
[421844672,1778208652000,-668.99,0.00012876,2]
[421844643,1778208652000,-396.485687,0.00012865,2]
[421844671,1778208652000,-500.0,0.00012876,2]
[421844670,1778208652000,-500.0,0.00012876,2]
[421844676,1778208652000,-500.0,0.00012876,2]
[421844668,1778208652000,-519.05,0.00012876,2]
[421844667,1778208652000,-1319.29,0.00012876,2]
[421844677,1778208652000,-500.0,0.00012876,2]
[421844665,1778208652000,-7212.35,0.00012876,2]
[421844669,1778208652000,-594.88122443,0.00012876,2]
[421844640,1778208652000,-590.451,0.0001262,2]
[421844663,1778208652000,-1188.67,0.00012876,2]
[421844642,1778208652000,-3501.85836187,0.00012794,2]
[421844629,1778208652000,-1215.7,0.00012602,2]
[421844624,1778208652000,-390.04,0.00012602,2]
[421844618,1778208652000,-500.0,0.00012602,2]
[421844617,1778208652000,-500.0,0.00012602,2]
[421844616,1778208652000,-519.05,0.00012602,2]
[421844614,1778208652000,-736.8,0.00012602,2]
[421844625,1778208652000,-514.2497297,0.00012602,2]
[421844645,1778208652000,-500.0,0.00012876,2]
[421844619,1778208652000,-500.0,0.00012602,2]
[421844615,1778208652000,-1319.29,0.00012602,2]
[421844623,1778208652000,-643.98,0.00012602,2]
[421844612,1778208652000,-500.0,0.00012602,2]
[421844621,1778208652000,-500.0,0.00012602,2]
[421844622,1778208652000,-1455.56,0.00012602,2]
[421844620,1778208652000,-668.99,0.00012602,2]
[421844630,1778208652000,-500.0,0.00012602,2]
[421844613,1778208652000,-7212.35,0.00012602,2]
[421844635,1778208652000,-1560.93,0.00012602,2]
[421844626,1778208652000,-500.0,0.00012602,2]
[421844639,1778208652000,-586.82,0.00012602,2]
[421844650,1778208652000,-616.61,0.00012876,2]
[421844649,1778208652000,-500.0,0.00012876,2]
[421844637,1778208652000,-500.0,0.00012602,2]
[421844646,1778208652000,-500.0,0.00012876,2]
[421844647,1778208652000,-500.0,0.00012876,2]
[421844648,1778208652000,-500.0,0.00012876,2]
[421844634,1778208652000,-1233.58,0.00012602,2]
[421844632,1778208652000,-574.39,0.00012602,2]
[421844633,1778208652000,-1986.34,0.00012602,2]
[421844628,1778208652000,-500.0,0.00012602,2]
[421844627,1778208652000,-500.0,0.00012602,2]
[421844631,1778208652000,-500.0,0.00012602,2]
[421844636,1778208652000,-500.0,0.00012602,2]
[421844686,1778208653000,-500.0,0.00012876,2]
[421844703,1778208653000,-616.61,0.0001315,2]
[421844692,1778208653000,-160.0,0.00012984,5]
[421844693,1778208653000,-473.622215,0.00013,2]
[421844688,1778208653000,-500.0,0.00012876,2]
[421844684,1778208653000,-1233.58,0.00012876,2]
[421844695,1778208653000,-3530.15559479,0.00013133,2]
[421844685,1778208653000,-1560.93,0.00012876,2]
[421844679,1778208653000,-1215.7,0.00012876,2]
[421844691,1778208653000,-160.0,0.00012984,3]
[421844682,1778208653000,-574.39,0.00012876,2]
[421844683,1778208653000,-1986.34,0.00012876,2]
[421844690,1778208653000,-720.0,0.00012909,2]
[421844681,1778208653000,-500.0,0.00012876,2]
[421844680,1778208653000,-500.0,0.00012876,2]
[421844689,1778208653000,-586.82,0.00012876,2]
[421844694,1778208653000,-549.115,0.000131,2]
[421844687,1778208653000,-500.0,0.00012876,2]
[421844704,1778208653000,-660.19,0.0001315,2]
[421844701,1778208653000,-345.45374108,0.0001315,2]
[421844711,1778208653000,-500.0,0.0001315,2]
[421844715,1778208653000,-1188.67,0.0001315,2]
[421844710,1778208653000,-500.0,0.0001315,2]
[421844709,1778208653000,-532.67,0.0001315,2]
[421844713,1778208653000,-1315.02,0.0001315,2]
[421844717,1778208653000,-946.56012942,0.0001315,2]
[421844712,1778208653000,-500.0,0.0001315,2]
[421844697,1778208653000,-1234.36,0.0001315,2]
[421844716,1778208653000,-500.0,0.0001315,2]
[421844708,1778208653000,-500.0,0.0001315,2]
[421844707,1778208653000,-500.0,0.0001315,2]
[421844706,1778208653000,-611.96,0.0001315,2]
[421844705,1778208653000,-500.0,0.0001315,2]
[421844700,1778208653000,-500.0,0.0001315,2]
[421844702,1778208653000,-500.0,0.0001315,2]
[421844699,1778208653000,-500.0,0.0001315,2]
[421844696,1778208653000,-155.0,0.00013148,2]
[421844698,1778208653000,-500.0,0.0001315,2]
[421844714,1778208653000,-778.39,0.0001315,2]
[421844747,1778209577000,21202.10367267,0.000191,120]
[421844760,1778209836000,-338.33769017,0.00010167,2]
[421844761,1778209836000,-1200.0,0.00010655,2]
[421844759,1778209836000,-1445.83442208,0.0001,2]
[421844758,1778209836000,-5000.0,9.801e-05,2]
[421844762,1778209836000,-300.0,0.00010656,2]
[421844764,1778209836000,-12.85656634,0.00010656,2]
[421844763,1778209836000,-300.0,0.00010656,2]
[421844769,1778209838000,-300.0,0.00010656,2]
[421844768,1778209838000,-287.14343366,0.00010656,2]
[421844771,1778209838000,-15908.09989732,0.00010658,2]
[421844770,1778209838000,-64178.63028659,0.00010658,2]
[421844803,1778209839000,-500.0,0.00010958,2]
[421844804,1778209839000,-500.0,0.00010958,2]
[421844811,1778209839000,-500.0,0.00010958,2]
[421844805,1778209839000,-500.0,0.00010958,2]
[421844809,1778209839000,-500.0,0.00010958,2]
[421844800,1778209839000,-500.0,0.00010958,2]
[421844806,1778209839000,-338.56345079,0.00010958,2]
[421844801,1778209839000,-500.0,0.00010958,2]
[421844807,1778209839000,-500.0,0.00010958,2]
[421844808,1778209839000,-500.0,0.00010958,2]
[421844802,1778209839000,-523.02,0.00010958,2]
[421844810,1778209839000,-394.29822997,0.00010958,2]
[421844816,1778209839000,-500.0,0.00010958,2]
[421844820,1778209839000,-500.0,0.00010958,2]
[421844824,1778209839000,-500.0,0.00010958,2]
[421844823,1778209839000,-500.0,0.00010958,2]
[421844812,1778209839000,-500.0,0.00010958,2]
[421844818,1778209839000,-500.0,0.00010958,2]
[421844822,1778209839000,-500.0,0.00010958,2]
[421844817,1778209839000,-500.0,0.00010958,2]
[421844821,1778209839000,-500.0,0.00010958,2]
[421844819,1778209839000,-500.0,0.00010958,2]
[421844813,1778209839000,-500.0,0.00010958,2]
[421844794,1778209839000,-892.0001,0.00010958,2]
[421844814,1778209839000,-512.03128095,0.00010958,2]
[421844787,1778209839000,-500.0,0.00010684,2]
[421844784,1778209839000,-500.0,0.00010684,2]
[421844797,1778209839000,-500.0,0.00010958,2]
[421844772,1778209839000,-24236.90010268,0.00010658,2]
[421844774,1778209839000,-645.0,0.00010683,2]
[421844785,1778209839000,-500.0,0.00010684,2]
[421844775,1778209839000,-500.0,0.00010683,2]
[421844773,1778209839000,-500.0,0.00010683,2]
[421844776,1778209839000,-500.0,0.00010683,2]
[421844780,1778209839000,-500.0,0.00010684,2]
[421844782,1778209839000,-500.0,0.00010684,2]
[421844781,1778209839000,-500.0,0.00010684,2]
[421844777,1778209839000,-500.0,0.00010683,2]
[421844779,1778209839000,-500.0,0.00010683,2]
[421844778,1778209839000,-500.0,0.00010683,2]
[421844786,1778209839000,-500.0,0.00010684,2]
[421844783,1778209839000,-500.0,0.00010684,2]
[421844793,1778209839000,-356.68058654,0.00010684,2]
[421844791,1778209839000,-500.0,0.00010684,2]
[421844788,1778209839000,-500.0,0.00010684,2]
[421844790,1778209839000,-500.0,0.00010684,2]
[421844799,1778209839000,-500.0,0.00010958,2]
[421844796,1778209839000,-553.93,0.00010958,2]
[421844792,1778209839000,-500.0,0.00010684,2]
[421844798,1778209839000,-500.0,0.00010958,2]
[421844789,1778209839000,-500.0,0.00010684,2]
[421844795,1778209839000,-500.0,0.00010958,2]
[421844815,1778209839000,-500.0,0.00010958,2]
[421844857,1778209839000,-500.0,0.00010958,2]
[421844828,1778209839000,-500.0,0.00010958,2]
[421844858,1778209839000,-500.0,0.00010958,2]
[421844854,1778209839000,-500.0,0.00010958,2]
[421844855,1778209839000,-518.55,0.00010958,2]
[421844856,1778209839000,-500.0,0.00010958,2]
[421844862,1778209839000,-332.31735854,0.00010958,2]
[421844860,1778209839000,-821.88,0.00010958,2]
[421844861,1778209839000,-500.0,0.00010958,2]
[421844864,1778209839000,-500.0,0.00010958,2]
[421844865,1778209839000,-4768.8,0.00010958,2]
[421844869,1778209839000,-500.0,0.00010958,2]
[421844872,1778209839000,-500.0,0.00010958,2]
[421844859,1778209839000,-642.17,0.00010958,2]
[421844875,1778209839000,-500.0,0.00010958,2]
[421844867,1778209839000,-500.0,0.00010958,2]
[421844866,1778209839000,-500.0,0.00010958,2]
[421844873,1778209839000,-500.0,0.00010958,2]
[421844871,1778209839000,-500.0,0.00010958,2]
[421844868,1778209839000,-879.53,0.00010958,2]
[421844870,1778209839000,-500.0,0.00010958,2]
[421844879,1778209839000,-970.37,0.00010958,2]
[421844876,1778209839000,-500.0,0.00010958,2]
[421844878,1778209839000,-500.0,0.00010958,2]
[421844830,1778209839000,-500.0,0.00010958,2]
[421844877,1778209839000,-500.0,0.00010958,2]
[421844863,1778209839000,-742.92,0.00010958,2]
[421844853,1778209839000,-500.0,0.00010958,2]
[421844874,1778209839000,-500.0,0.00010958,2]
[421844852,1778209839000,-500.0,0.00010958,2]
[421844825,1778209839000,-500.0,0.00010958,2]
[421844829,1778209839000,-500.0,0.00010958,2]
[421844851,1778209839000,-500.0,0.00010958,2]
[421844826,1778209839000,-500.0,0.00010958,2]
[421844833,1778209839000,-396.29986815,0.00010958,2]
[421844827,1778209839000,-500.0,0.00010958,2]
[421844831,1778209839000,-500.0,0.00010958,2]
[421844832,1778209839000,-500.0,0.00010958,2]
[421844836,1778209839000,-500.0,0.00010958,2]
[421844835,1778209839000,-500.0,0.00010958,2]
[421844849,1778209839000,-500.0,0.00010958,2]
[421844847,1778209839000,-500.0,0.00010958,2]
[421844850,1778209839000,-500.0,0.00010958,2]
[421844834,1778209839000,-500.0,0.00010958,2]
[421844848,1778209839000,-500.0,0.00010958,2]
[421844843,1778209839000,-500.0,0.00010958,2]
[421844838,1778209839000,-500.0,0.00010958,2]
[421844840,1778209839000,-500.0,0.00010958,2]
[421844846,1778209839000,-500.0,0.00010958,2]
[421844842,1778209839000,-500.0,0.00010958,2]
[421844841,1778209839000,-500.0,0.00010958,2]
[421844844,1778209839000,-500.0,0.00010958,2]
[421844837,1778209839000,-500.0,0.00010958,2]
[421844845,1778209839000,-500.0,0.00010958,2]
[421844839,1778209839000,-500.0,0.00010958,2]
[421844928,1778209840000,-188.64,0.00011232,2]
[421844914,1778209840000,-500.0,0.00011232,2]
[421844912,1778209840000,-500.0,0.00011232,2]
[421844911,1778209840000,-500.0,0.00011232,2]
[421844917,1778209840000,-500.0,0.00011232,2]
[421844908,1778209840000,-218.39,0.00011232,2]
[421844915,1778209840000,-500.0,0.00011232,2]
[421844916,1778209840000,-500.0,0.00011232,2]
[421844909,1778209840000,-500.0,0.00011232,2]
[421844919,1778209840000,-606.18,0.00011232,2]
[421844910,1778209840000,-500.0,0.00011232,2]
[421844920,1778209840000,-500.0,0.00011232,2]
[421844936,1778209840000,-446.28,0.00011232,2]
[421844918,1778209840000,-500.0,0.00011232,2]
[421844927,1778209840000,-500.0,0.00011232,2]
[421844924,1778209840000,-500.0,0.00011232,2]
[421844922,1778209840000,-500.0,0.00011232,2]
[421844925,1778209840000,-500.0,0.00011232,2]
[421844923,1778209840000,-500.0,0.00011232,2]
[421844935,1778209840000,-500.0,0.00011232,2]
[421844929,1778209840000,-500.0,0.00011232,2]
[421844932,1778209840000,-500.0,0.00011232,2]
[421844913,1778209840000,-500.0,0.00011232,2]
[421844941,1778209840000,-500.0,0.00011232,2]
[421844921,1778209840000,-500.0,0.00011232,2]
[421844907,1778209840000,-892.0001,0.00011232,2]
[421844883,1778209840000,-500.0,0.00010958,2]
[421844904,1778209840000,-515.19,0.00010958,2]
[421844930,1778209840000,-500.0,0.00011232,2]
[421844881,1778209840000,-500.0,0.00010958,2]
[421844880,1778209840000,-500.0,0.00010958,2]
[421844882,1778209840000,-927.79,0.00010958,2]
[421844890,1778209840000,-516.99,0.00010958,2]
[421844888,1778209840000,-500.0,0.00010958,2]
[421844886,1778209840000,-500.0,0.00010958,2]
[421844891,1778209840000,-1324.22,0.00010958,2]
[421844889,1778209840000,-822.39,0.00010958,2]
[421844885,1778209840000,-500.0,0.00010958,2]
[421844884,1778209840000,-500.0,0.00010958,2]
[421844887,1778209840000,-500.0,0.00010958,2]
[421844894,1778209840000,-500.0,0.00010958,2]
[421844893,1778209840000,-500.0,0.00010958,2]
[421844892,1778209840000,-500.0,0.00010958,2]
[421844902,1778209840000,-500.0,0.00010958,2]
[421844901,1778209840000,-500.0,0.00010958,2]
[421844896,1778209840000,-1040.62,0.00010958,2]
[421844899,1778209840000,-500.0,0.00010958,2]
[421844895,1778209840000,-500.0,0.00010958,2]
[421844906,1778209840000,-500.0,0.00010958,2]
[421844898,1778209840000,-597.04,0.00010958,2]
[421844900,1778209840000,-518.879108,0.00010958,2]
[421844905,1778209840000,-500.0,0.00010958,2]
[421844903,1778209840000,-500.0,0.00010958,2]
[421844897,1778209840000,-241.09069562,0.00010958,2]
[421844931,1778209840000,-500.0,0.00011232,2]
[421844926,1778209840000,-500.0,0.00011232,2]
[421844939,1778209840000,-500.0,0.00011232,2]
[421844979,1778209840000,-160.0,0.00011467,2]
[421844972,1778209840000,-500.0,0.00011232,2]
[421844971,1778209840000,-1040.62,0.00011232,2]
[421844974,1778209840000,-500.0,0.00011232,2]
[421844975,1778209840000,-515.19,0.00011232,2]
[421844968,1778209840000,-822.39,0.00011232,2]
[421844978,1778209840000,-161.58879827,0.00011467,2]
[421844973,1778209840000,-500.0,0.00011232,2]
[421844976,1778209840000,-500.0,0.00011232,2]
[421844977,1778209840000,-500.0,0.00011232,2]
[421844986,1778209840000,-254.07,0.00011506,2]
[421844991,1778209840000,-500.0,0.00011506,2]
[421844983,1778209840000,-188.3,0.00011506,2]
[421844984,1778209840000,-500.0,0.00011506,2]
[421844988,1778209840000,-500.0,0.00011506,2]
[421844989,1778209840000,-500.0,0.00011506,2]
[421844982,1778209840000,-892.0001,0.00011506,2]
[421844981,1778209840000,-160.0,0.00011467,2]
[421844990,1778209840000,-500.0,0.00011506,2]
[421844987,1778209840000,-500.0,0.00011506,2]
[421844980,1778209840000,-160.0,0.00011467,2]
[421844992,1778209840000,-500.0,0.00011506,2]
[421844993,1778209840000,-500.0,0.00011506,2]
[421844994,1778209840000,-500.0,0.00011506,2]
[421844940,1778209840000,-500.0,0.00011232,2]
[421844967,1778209840000,-500.0,0.00011232,2]
[421844969,1778209840000,-1324.22,0.00011232,2]
[421844985,1778209840000,-153.91,0.00011506,2]
[421844960,1778209840000,-500.0,0.00011232,2]
[421844970,1778209840000,-500.0,0.00011232,2]
[421844933,1778209840000,-500.0,0.00011232,2]
[421844934,1778209840000,-500.0,0.00011232,2]
[421844938,1778209840000,-500.0,0.00011232,2]
[421844937,1778209840000,-500.0,0.00011232,2]
[421844943,1778209840000,-821.88,0.00011232,2]
[421844948,1778209840000,-500.0,0.00011232,2]
[421844946,1778209840000,-500.0,0.00011232,2]
[421844947,1778209840000,-4768.8,0.00011232,2]
[421844950,1778209840000,-500.0,0.00011232,2]
[421844945,1778209840000,-742.92,0.00011232,2]
[421844944,1778209840000,-500.0,0.00011232,2]
[421844949,1778209840000,-879.53,0.00011232,2]
[421844942,1778209840000,-642.17,0.00011232,2]
[421844964,1778209840000,-500.0,0.00011232,2]
[421844954,1778209840000,-500.0,0.00011232,2]
[421844951,1778209840000,-500.0,0.00011232,2]
[421844958,1778209840000,-500.0,0.00011232,2]
[421844955,1778209840000,-307.09374395,0.00011232,2]
[421844963,1778209840000,-500.0,0.00011232,2]
[421844956,1778209840000,-500.0,0.00011232,2]
[421844953,1778209840000,-500.0,0.00011232,2]
[421844965,1778209840000,-302.34602755,0.00011232,2]
[421844966,1778209840000,-500.0,0.00011232,2]
[421844961,1778209840000,-970.37,0.00011232,2]
[421844962,1778209840000,-927.79,0.00011232,2]
[421844952,1778209840000,-500.0,0.00011232,2]
[421845023,1778209841000,-500.0,0.00011506,2]
[421845007,1778209841000,-879.53,0.00011506,2]
[421845013,1778209841000,-500.0,0.00011506,2]
[421845021,1778209841000,-822.39,0.00011506,2]
[421845018,1778209841000,-500.0,0.00011506,2]
[421845022,1778209841000,-1324.22,0.00011506,2]
[421845012,1778209841000,-500.0,0.00011506,2]
[421845020,1778209841000,-500.0,0.00011506,2]
[421845027,1778209841000,-500.0,0.00011506,2]
[421845024,1778209841000,-1040.62,0.00011506,2]
[421845028,1778209841000,-515.19,0.00011506,2]
[421845019,1778209841000,-500.0,0.00011506,2]
[421845030,1778209841000,-500.0,0.00011506,2]
[421845025,1778209841000,-500.0,0.00011506,2]
[421845009,1778209841000,-500.0,0.00011506,2]
[421845029,1778209841000,-500.0,0.00011506,2]
[421845026,1778209841000,-500.0,0.00011506,2]
[421845010,1778209841000,-500.0,0.00011506,2]
[421845000,1778209841000,-500.0,0.00011506,2]
[421845008,1778209841000,-500.0,0.00011506,2]
[421845032,1778209841000,-892.0001,0.0001178,2]
[421845001,1778209841000,-642.17,0.00011506,2]
[421845004,1778209841000,-742.92,0.00011506,2]
[421845003,1778209841000,-500.0,0.00011506,2]
[421845002,1778209841000,-821.88,0.00011506,2]
[421844997,1778209841000,-500.0,0.00011506,2]
[421844995,1778209841000,-422.92792096,0.00011506,2]
[421845014,1778209841000,-500.0,0.00011506,2]
[421844998,1778209841000,-500.0,0.00011506,2]
[421844996,1778209841000,-500.0,0.00011506,2]
[421845016,1778209841000,-927.79,0.00011506,2]
[421845006,1778209841000,-500.0,0.00011506,2]
[421845017,1778209841000,-500.0,0.00011506,2]
[421845005,1778209841000,-4768.8,0.00011506,2]
[421845015,1778209841000,-970.37,0.00011506,2]
[421845011,1778209841000,-500.0,0.00011506,2]
[421844999,1778209841000,-500.0,0.00011506,2]
[421845031,1778209841000,-168.4757,0.00011507,2]
[421845055,1778209841000,-500.0,0.0001178,2]
[421845038,1778209841000,-500.0,0.0001178,2]
[421845048,1778209841000,-500.0,0.0001178,2]
[421845058,1778209841000,-500.0,0.0001178,2]
[421845068,1778209841000,-822.39,0.0001178,2]
[421845057,1778209841000,-500.0,0.0001178,2]
[421845066,1778209841000,-306.05587693,0.0001178,2]
[421845063,1778209841000,-70.14935502,0.0001178,2]
[421845060,1778209841000,-970.37,0.0001178,2]
[421845047,1778209841000,-821.88,0.0001178,2]
[421845059,1778209841000,-500.0,0.0001178,2]
[421845061,1778209841000,-927.79,0.0001178,2]
[421845064,1778209841000,-87.06990801,0.0001178,2]
[421845062,1778209841000,-500.0,0.0001178,2]
[421845042,1778209841000,-500.0,0.0001178,2]
[421845069,1778209841000,-1324.22,0.0001178,2]
[421845070,1778209841000,-500.0,0.0001178,2]
[421845071,1778209841000,-125.13043887,0.0001178,2]
[421845067,1778209841000,-500.0,0.0001178,2]
[421845053,1778209841000,-500.0,0.0001178,2]
[421845065,1778209841000,-193.94412307,0.0001178,2]
[421845050,1778209841000,-4768.8,0.0001178,2]
[421845039,1778209841000,-500.0,0.0001178,2]
[421845049,1778209841000,-742.92,0.0001178,2]
[421845036,1778209841000,-500.0,0.0001178,2]
[421845035,1778209841000,-500.0,0.0001178,2]
[421845041,1778209841000,-500.0,0.0001178,2]
[421845033,1778209841000,-500.0,0.0001178,2]
[421845034,1778209841000,-500.0,0.0001178,2]
[421845043,1778209841000,-380.49,0.0001178,2]
[421845037,1778209841000,-500.0,0.0001178,2]
[421845045,1778209841000,-500.0,0.0001178,2]
[421845056,1778209841000,-500.0,0.0001178,2]
[421845044,1778209841000,-500.0,0.0001178,2]
[421845051,1778209841000,-500.0,0.0001178,2]
[421845054,1778209841000,-500.0,0.0001178,2]
[421845052,1778209841000,-879.53,0.0001178,2]
[421845040,1778209841000,-500.0,0.0001178,2]
[421845046,1778209841000,-642.17,0.0001178,2]
[421845097,1778209846000,-500.0,0.00012054,2]
[421845103,1778209846000,-821.88,0.00012054,2]
[421845108,1778209846000,-3783.19039231,0.00012054,2]
[421845101,1778209846000,-500.0,0.00012054,2]
[421845100,1778209846000,-286.5723772,0.00012054,2]
[421845099,1778209846000,-213.4276228,0.00012054,2]
[421845102,1778209846000,-642.17,0.00012054,2]
[421845105,1778209846000,-742.92,0.00012054,2]
[421845104,1778209846000,-500.0,0.00012054,2]
[421845106,1778209846000,-985.60960769,0.00012054,2]
[421845096,1778209846000,-500.0,0.00012054,2]
[421845110,1778209846000,-879.53,0.00012054,2]
[421845098,1778209846000,-500.0,0.00012054,2]
[421845094,1778209846000,-322.32496261,0.00012054,2]
[421845084,1778209846000,-515.19,0.0001178,2]
[421845091,1778209846000,-500.0,0.00012054,2]
[421845122,1778209846000,-500.0,0.00012054,2]
[421845080,1778209846000,-500.0,0.0001178,2]
[421845083,1778209846000,-355.16522723,0.0001178,2]
[421845079,1778209846000,-915.48956113,0.0001178,2]
[421845082,1778209846000,-144.83477277,0.0001178,2]
[421845081,1778209846000,-500.0,0.0001178,2]
[421845089,1778209846000,-500.0,0.00012054,2]
[421845085,1778209846000,-500.0,0.0001178,2]
[421845092,1778209846000,-500.0,0.00012054,2]
[421845088,1778209846000,-901.6807,0.00012054,2]
[421845090,1778209846000,-500.0,0.00012054,2]
[421845087,1778209846000,-117.67891533,0.0001178,2]
[421845093,1778209846000,-177.67503739,0.00012054,2]
[421845086,1778209846000,-382.32108467,0.0001178,2]
[421845095,1778209846000,-500.0,0.00012054,2]
[421845113,1778209846000,-500.0,0.00012054,2]
[421845127,1778209846000,-500.0,0.00012054,2]
[421845111,1778209846000,-525.01197734,0.00012054,2]
[421845120,1778209846000,-500.0,0.00012054,2]
[421845166,1778209846000,-642.17,0.00012328,2]
[421845155,1778209846000,-500.0,0.00012328,2]
[421845157,1778209846000,-500.0,0.00012328,2]
[421845162,1778209846000,-500.0,0.00012328,2]
[421845164,1778209846000,-500.0,0.00012328,2]
[421845153,1778209846000,-500.0,0.00012328,2]
[421845161,1778209846000,-500.0,0.00012328,2]
[421845159,1778209846000,-267.6,0.00012328,2]
[421845151,1778209846000,-500.0,0.00012328,2]
[421845147,1778209846000,-500.0,0.00012328,2]
[421845139,1778209846000,-500.0,0.00012054,2]
[421845133,1778209846000,-500.0,0.00012054,2]
[421845135,1778209846000,-640.73136224,0.00012054,2]
[421845143,1778209846000,-399.23847441,0.00012167,2]
[421845149,1778209846000,-500.0,0.00012328,2]
[421845137,1778209846000,-515.19,0.00012054,2]
[421845121,1778209846000,-500.0,0.00012054,2]
[421845145,1778209846000,-500.0,0.00012328,2]
[421845109,1778209846000,-500.0,0.00012054,2]
[421845112,1778209846000,-500.0,0.00012054,2]
[421845117,1778209846000,-500.0,0.00012054,2]
[421845116,1778209846000,-500.0,0.00012054,2]
[421845118,1778209846000,-970.37,0.00012054,2]
[421845114,1778209846000,-500.0,0.00012054,2]
[421845119,1778209846000,-927.79,0.00012054,2]
[421845126,1778209846000,-1324.22,0.00012054,2]
[421845124,1778209846000,-822.39,0.00012054,2]
[421845129,1778209846000,-1040.62,0.00012054,2]
[421845131,1778209846000,-500.0,0.00012054,2]
[421845141,1778209846000,-500.0,0.00012054,2]
[421845115,1778209846000,-500.0,0.00012054,2]
[421845225,1778209847000,-970.37,0.00012328,2]
[421845215,1778209847000,-500.0,0.00012328,2]
[421845223,1778209847000,-500.0,0.00012328,2]
[421845221,1778209847000,-500.0,0.00012328,2]
[421845219,1778209847000,-500.0,0.00012328,2]
[421845217,1778209847000,-500.0,0.00012328,2]
[421845213,1778209847000,-397.45,0.00012328,2]
[421845168,1778209847000,-821.88,0.00012328,2]
[421845209,1778209847000,-500.0,0.00012328,2]
[421845211,1778209847000,-879.53,0.00012328,2]
[421845174,1778209847000,-2790.95431804,0.00012328,2]
[421845172,1778209847000,-742.92,0.00012328,2]
[421845170,1778209847000,-500.0,0.00012328,2]
[421845227,1778209847000,-927.79,0.00012328,2]
[421845207,1778209847000,-1977.84568196,0.00012328,2]
[421845229,1778209847000,-500.0,0.00012328,2]
[421845244,1778209847000,-500.0,0.00012328,2]
[421845238,1778209847000,-500.0,0.00012328,2]
[421845246,1778209847000,-515.19,0.00012328,2]
[421845259,1778209847000,-500.0,0.00012602,2]
[421845261,1778209847000,-410.02326298,0.00012602,2]
[421845242,1778209847000,-500.0,0.00012328,2]
[421845248,1778209847000,-500.0,0.00012328,2]
[421845231,1778209847000,-500.0,0.00012328,2]
[421845250,1778209847000,-500.0,0.00012328,2]
[421845240,1778209847000,-1040.62,0.00012328,2]
[421845257,1778209847000,-500.0,0.00012602,2]
[421845255,1778209847000,-500.0,0.00012602,2]
[421845252,1778209847000,-500.0,0.00012602,2]
[421845236,1778209847000,-1324.22,0.00012328,2]
[421845235,1778209847000,-822.39,0.00012328,2]
[421845233,1778209847000,-500.0,0.00012328,2]
[421845253,1778209847000,-500.0,0.00012602,2]
[421845427,1778209963000,1000.0,0.00013698,120]
[421845426,1778209963000,1000.0,0.00013698,120]
[421845425,1778209963000,1000.0,0.00013698,120]
[421845429,1778209964000,1000.0,0.00013698,120]